bitfinex-derivatives/quotes_ETHF0:USTF0_20250326
["timestamp","ask_amount","ask_price","bid_price","bid_amount"]
[1742989260724,3.148,2070.6,2070.5,4.38513]
[1742989260926,4.81184,2070.8,2070.7,0.96564]
[1742989261131,0.96569,2070.7,2070.6,1.3584]
[1742989261334,2.28129,2070.7,2070.6,1.3584]
[1742989261531,2.28129,2070.7,2070.6,2.32409]
[1742989262839,2.28129,2070.7,2070.6,1.3584]
[1742989263036,2.28129,2070.7,2070.6,2.32409]
[1742989264034,2.28129,2070.7,2070.6,1.3584]
[1742989264342,2.28129,2070.7,2070.6,2.32409]
[1742989264537,2.28129,2070.7,2070.6,1.3584]
[1742989264837,2.28129,2070.7,2070.6,2.32409]
[1742989266543,2.28129,2070.7,2070.6,1.3584]
[1742989266933,2.28129,2070.7,2070.6,2.32409]
[1742989272045,2.28129,2070.7,2070.6,1.3584]
[1742989273241,0.96578,2070.4,2070.3,0.96581]
[1742989273545,0.96583,2070.3,2070.2,2.35404]
[1742989273747,2.28143,2070.3,2070.2,43.15404]
[1742989274744,2.28143,2070.3,2070.2,42.1882]
[1742989275141,2.28143,2070.3,2070.2,43.15407]
[1742989275741,2.41481,2070.1,2069.5,2.41539]
[1742989275942,0.96608,2069.9,2069.8,0.96603]
[1742989276137,5.44065043,2070.0,2069.9,0.96601]
[1742989276342,4.12125043,2070.0,2069.9,2.37601]
[1742989276540,3.15524043,2070.0,2069.9,3.43731]
[1742989276743,4.12121043,2070.0,2069.9,43.87731]
[1742989277647,4.12121043,2070.0,2069.9,43.17601]
[1742989277853,4.12121043,2070.0,2069.9,42.21]
[1742989279251,0.96611,2069.7,2069.6,0.6653]
[1742989279445,4.12411,2069.7,2069.6,0.6653]
[1742989279645,4.12411,2069.7,2069.6,1.63145]
[1742989279850,4.12411,2069.7,2069.6,41.4653]
[1742989280445,4.12411,2069.7,2069.6,40.8]
[1742989280646,4.12411,2069.7,2069.6,42.1554]
[1742989281159,4.12411,2069.7,2069.6,40.8]
[1742989282346,0.96639,2069.1,2069.0,4.17418]
[1742989282541,2.41539,2069.6,2069.1,1.65164]
[1742989282542,4.12337,2069.2,2069.1,1.65164]
[1742989282746,4.12337,2069.2,2069.1,43.80704]
[1742989283261,4.12337,2069.2,2069.1,42.8407]
[1742989283443,4.12337,2069.2,2069.1,43.80709]
[1742989283649,5.44957,2069.2,2069.1,42.8407]
[1742989284151,5.44957,2069.2,2069.1,40.8]
[1742989284361,5.44957,2069.2,2069.1,42.0927]
[1742989285051,2.29257,2069.2,2069.1,42.0927]
[1742989285253,0.645,2069.3,2069.2,0.96634]
[1742989285555,3.8498,2069.5,2069.2,1.9367]
[1742989285757,4.16029,2069.3,2069.2,2.90304]
[1742989285947,3.194,2069.3,2069.2,1.61034]
[1742989286467,4.16029,2069.3,2069.2,42.41034]
[1742989286846,4.16029,2069.3,2069.2,41.444]
[1742989287052,4.16029,2069.3,2069.2,42.41034]
[1742989287353,4.16029,2069.3,2069.2,41.444]
[1742989287659,4.16029,2069.3,2069.2,42.41034]
[1742989287860,4.16029,2069.3,2069.2,44.62034]
[1742989288351,3.194,2069.3,2069.2,44.62034]
[1742989288658,4.16029,2069.3,2069.2,44.62034]
[1742989289061,3.194,2069.3,2069.2,44.62034]
[1742989289361,4.16029,2069.3,2069.2,44.62034]
[1742989289566,3.194,2069.3,2069.2,44.62034]
[1742989290160,4.16029,2069.3,2069.2,44.62034]
[1742989291051,4.16029,2069.3,2069.2,43.654]
[1742989291452,4.16029,2069.3,2069.2,43.97634]
[1742989291648,5.56519,2069.3,2069.2,43.01]
[1742989291848,5.56519,2069.3,2069.2,40.8]
[1742989294372,5.56519,2069.3,2069.2,43.98634]
[1742989294558,5.56519,2069.3,2069.2,43.02]
[1742989294758,5.56519,2069.3,2069.2,40.8]
[1742989295255,3.187,2069.6,2069.5,0.9662]
[1742989295464,0.96613,2069.7,2069.6,0.96615]
[1742989295765,3.19,2069.7,2069.6,1.36615]
[1742989296765,0.97324043,2070.0,2069.9,0.96601]
[1742989296956,4.16424043,2070.0,2069.9,3.10601]
[1742989297157,4.16424043,2070.0,2069.9,0.96601]
[1742989298065,4.16324043,2070.0,2069.9,0.96601]
[1742989299366,0.96606,2069.9,2069.8,0.96603]
[1742989299862,4.15306,2069.9,2069.8,0.96603]
[1742989300457,0.96606,2069.9,2069.8,0.96603]
[1742989301263,4.59904043,2070.0,2069.9,0.96601]
[1742989301264,0.00724043,2070.0,2069.9,0.96601]
[1742989301565,0.00724043,2070.0,2069.9,8.01031]
[1742989302557,0.00724043,2070.0,2069.9,4.83031]
[1742989302862,0.00724043,2070.0,2069.9,7.23031]
[1742989303062,0.00724043,2070.0,2069.9,7.93671]
[1742989304869,0.00724043,2070.0,2069.9,5.53671]
[1742989305067,0.00724043,2070.0,2069.9,7.66671]
[1742989309071,0.00724043,2070.0,2069.9,5.53671]
[1742989309270,0.00724043,2070.0,2069.9,7.82671]
[1742989312177,0.97321043,2070.0,2069.9,4.88021]
[1742989312381,2.03684043,2070.0,2069.9,6.99021]
[1742989312878,2.03684043,2070.0,2069.9,8.33811]
[1742989313976,3.00281043,2070.0,2069.9,8.33811]
[1742989314777,2.03684043,2070.0,2069.9,8.33811]
[1742989314981,3.00281043,2070.0,2069.9,8.33811]
[1742989315871,3.00281043,2070.0,2069.9,6.22811]
[1742989317171,3.00281043,2070.0,2069.9,3.2078]
[1742989317374,0.96615,2069.7,2069.6,4.17395]
[1742989317578,4.15115,2069.7,2069.6,4.17395]
[1742989317774,4.15115,2069.7,2069.6,3.2078]
[1742989317973,0.96615,2069.6,2069.5,2.35359]
[1742989318282,3.63375,2069.6,2069.5,1.3874]
[1742989319172,0.96629,2069.3,2069.2,42.4139]
[1742989319487,4.14829,2069.4,2069.3,0.96629]
[1742989320471,4.14829,2069.4,2069.3,2.25499]
[1742989320670,4.14825,2069.4,2069.3,4.64499]
[1742989321073,3.182,2069.4,2069.3,4.64499]
[1742989321273,4.14825,2069.4,2069.3,2.25499]
[1742989321474,4.14825,2069.4,2069.3,4.27499]
[1742989322784,4.14825,2069.4,2069.3,2.25499]
[1742989323782,0.96629,2069.3,2069.2,41.76631]
[1742989323983,2.31259,2069.3,2069.2,41.76631]
[1742989326486,1.3463,2069.3,2069.2,43.97631]
[1742989327077,2.31259,2069.3,2069.2,43.97631]
[1742989327479,2.31259,2069.3,2069.2,44.08631]
[1742989327674,1.3463,2069.3,2069.2,44.08631]
[1742989328079,1.3463,2069.3,2069.2,41.76631]
[1742989328278,1.3463,2069.3,2069.2,44.08631]
[1742989328685,3.182,2069.4,2069.3,0.96629]
[1742989328885,4.14825,2069.4,2069.3,6.98799]
[1742989329087,3.182,2069.4,2069.3,6.98799]
[1742989329282,3.182,2069.4,2069.3,2.94799]
[1742989329488,3.182,2069.4,2069.3,3.31799]
[1742989329690,3.182,2069.4,2069.3,2.94799]
[1742989329991,4.14825,2069.4,2069.3,2.94799]
[1742989331092,4.14825,2069.4,2069.3,5.33799]
[1742989331889,3.182,2069.4,2069.3,5.33799]
[1742989332089,4.14825,2069.4,2069.3,6.02879]
[1742989332289,3.182,2069.4,2069.3,6.02879]
[1742989332487,4.14825,2069.4,2069.3,6.02879]
[1742989333092,2.41516,2069.8,2069.6,0.96612]
[1742989333390,4.13216,2069.7,2069.6,3.74612]
[1742989333593,6.21496,2069.7,2069.6,2.89612]
[1742989334690,0.96619,2069.6,2069.5,0.96615]
[1742989334896,2.37289,2069.6,2069.5,0.96615]
[1742989337391,2.37289,2069.6,2069.3,6.95234]
[1742989337392,0.96625,2069.4,2069.3,4.81216]
[1742989337692,4.14225,2069.4,2069.3,0.6381]
[1742989337898,0.96629,2069.3,2069.2,41.7663]
[1742989338095,3.00199,2069.3,2069.2,41.7663]
[1742989338294,3.00199,2069.3,2069.2,40.8]
[1742989339593,0.96639,2069.1,2069.0,4.1742]
[1742989339987,0.96639,2069.1,2069.0,44.9742]
[1742989340387,0.96648,2068.9,2068.8,0.96651]
[1742989340990,2.96578,2068.9,2068.8,41.76651]
[1742989341188,2.96578,2068.9,2068.8,40.8]
[1742989341388,2.96578,2068.9,2068.6,0.96662]
[1742989341389,0.96661,2068.7,2068.6,0.96662]
[1742989341586,0.96661,2068.7,2068.6,3.42662]
[1742989341785,0.96661,2068.7,2068.6,3.24662]
[1742989341983,4.14856,2068.8,2068.7,0.96657]
[1742989342200,4.14856,2068.8,2068.7,3.01657]
[1742989342490,4.14856,2068.8,2068.7,0.96657]
[1742989342491,4.14853,2068.8,2068.7,0.96657]
[1742989342693,4.14853,2068.8,2068.7,3.88297]
[1742989343799,4.14853,2068.8,2068.7,44.68297]
[1742989344491,3.182,2068.8,2068.7,44.68297]
[1742989344691,4.14853,2068.8,2068.7,44.68297]
[1742989344901,4.14853,2068.8,2068.7,41.76657]
[1742989345193,5.53433,2068.8,2068.7,44.04657]
[1742989348107,3.182,2068.8,2068.7,44.04657]
[1742989348498,2.99954043,2068.9,2068.8,0.96653]
[1742989348700,2.99954043,2068.9,2068.8,3.77653]
[1742989348900,0.97374043,2068.9,2068.8,3.77653]
[1742989349103,0.97374043,2068.9,2068.8,4.47123]
[1742989349298,0.00724043,2068.9,2068.8,4.47123]
[1742989350015,0.97372043,2068.9,2068.8,4.47123]
[1742989350700,0.00724043,2068.9,2068.8,4.47123]
[1742989350902,0.00724043,2068.9,2068.8,2.84123]
[1742989351108,0.00724043,2068.9,2068.8,1.66123]
[1742989351306,0.00724043,2068.9,2068.8,3.66123]
[1742989352199,0.97372043,2068.9,2068.8,1.66123]
[1742989352400,0.97372043,2068.9,2068.8,5.00003]
[1742989352702,1.41384043,2068.9,2068.8,5.00003]
[1742989352901,0.00724043,2068.9,2068.8,5.06003]
[1742989357412,0.00724043,2068.9,2068.8,5.73003]
[1742989360415,0.00724043,2068.9,2068.8,4.94003]
[1742989360606,0.00724043,2068.9,2068.8,5.20003]
[1742989362012,0.00724043,2068.9,2068.8,2.94003]
[1742989362204,0.00724043,2068.9,2068.8,5.15003]
[1742989363415,0.00724043,2068.9,2068.8,2.94003]
[1742989363615,0.00724043,2068.9,2068.8,5.16003]
[1742989364718,0.00724043,2068.9,2068.8,2.94003]
[1742989364921,0.00724043,2068.9,2068.8,5.18003]
[1742989365718,0.00724043,2068.9,2068.8,2.94003]
[1742989366021,0.00724043,2068.9,2068.8,5.19003]
[1742989366213,0.00724043,2068.9,2068.8,2.94003]
[1742989366409,0.00724043,2068.9,2068.8,4.93003]
[1742989371630,1.39094043,2068.9,2068.8,4.93003]
[1742989371824,1.39094043,2068.9,2068.8,4.16533]
[1742989373731,2.35742043,2068.9,2068.8,4.50533]
[1742989374120,2.35742043,2068.9,2068.8,1.2788]
[1742989374525,0.96653,2068.8,2068.7,41.76655]
[1742989374726,3.62053,2068.8,2068.7,43.09745]
[1742989375424,3.62053,2068.8,2068.7,42.1309]
[1742989375630,3.62053,2068.8,2068.7,40.8]
[1742989376227,0.96657,2068.7,2068.6,0.96658]
[1742989376433,2.24657,2068.7,2068.6,3.68658]
[1742989376727,2.24657,2068.7,2068.6,44.48658]
[1742989377526,2.24657,2068.7,2068.6,40.8]
[1742989378334,0.96667,2068.5,2068.4,2.2748]
[1742989378533,0.96667,2068.5,2068.4,5.3448]
[1742989378737,0.96667,2068.5,2068.4,45.1781]
[1742989378939,2.96107,2068.5,2068.4,45.1781]
[1742989379934,2.96107,2068.5,2068.4,42.1081]
[1742989380536,2.96107,2068.5,2068.4,43.07481]
[1742989380738,2.96107,2068.5,2068.4,45.46481]
[1742989382436,2.96107,2068.5,2068.4,43.07481]
[1742989383531,2.96107,2068.5,2068.4,42.1081]
[1742989383726,2.96107,2068.5,2068.4,40.8]
[1742989384939,2.96107,2068.5,2068.4,44.3853]
[1742989385238,2.96107,2068.5,2068.4,43.15201]
[1742989385827,2.96107,2068.5,2068.4,42.1853]
[1742989386631,2.96107,2068.5,2068.4,43.15201]
[1742989387141,2.96107,2068.5,2068.4,1.3853]
[1742989387435,2.96107,2068.5,2068.4,2.35201]
[1742989387741,2.96107,2068.5,2068.4,4.44201]
[1742989387944,2.96107,2068.5,2068.4,1.3853]
[1742989390139,0.96676,2068.3,2068.2,40.8]
[1742989390343,0.96676,2068.3,2068.2,41.76681]
[1742989391333,0.96676,2068.3,2068.2,40.8]
[1742989391530,5.45326,2068.3,2068.2,40.8]
[1742989391943,5.45326,2068.3,2068.2,42.089]
[1742989392746,5.45326,2068.3,2068.2,44.199]
[1742989392940,5.45326,2068.3,2068.2,45.16581]
[1742989393146,4.10176,2068.3,2068.2,45.16581]
[1742989393943,4.10176,2068.3,2068.2,42.089]
[1742989394143,5.46976,2068.3,2068.2,43.05581]
[1742989396653,0.6596,2068.5,2068.2,44.169]
[1742989396948,4.09671,2068.4,2068.3,2.99145]
[1742989397649,5.42081,2068.4,2068.3,2.99145]
[1742989398038,5.42081,2068.4,2068.3,5.22145]
[1742989398340,5.42081,2068.4,2068.3,2.99145]
[1742989398341,4.09671,2068.4,2068.3,2.99145]
[1742989398649,4.09671,2068.4,2068.3,3.65725]
[1742989401456,4.09671,2068.4,2068.3,2.6905]
[1742989401644,4.09671,2068.4,2068.3,3.65726]
[1742989402150,4.09671,2068.4,2068.3,5.84726]
[1742989402855,4.09671,2068.4,2068.3,5.84726]
[1742989404250,4.09671,2068.4,2068.3,3.65726]
[1742989404445,4.09671,2068.4,2068.3,2.0247]
[1742989404651,5.43381,2068.4,2068.3,2.0247]
[1742989404857,5.43381,2068.4,2068.3,2.99146]
[1742989405556,4.09671,2068.4,2068.3,5.08146]
[1742989406347,4.09671,2068.4,2068.3,2.0247]
[1742989406549,5.43381,2068.4,2068.3,2.99146]
[1742989407051,5.43381,2068.4,2068.3,2.0247]
[1742989407256,5.43381,2068.4,2068.3,2.99146]
[1742989407557,5.43381,2068.4,2068.3,2.0247]
[1742989409249,5.43381,2068.4,2068.3,1.3375]
[1742989409460,6.12331,2068.4,2068.3,1.3375]
[1742989412852,0.96676,2068.3,2068.2,40.8]
[1742989413047,0.96676,2068.3,2067.8,2.78513478]
[1742989413048,0.96698,2067.9,2067.8,0.96693]
[1742989413355,0.96704,2067.7,2067.6,5.50296]
[1742989413561,0.96704,2067.7,2067.6,41.76706]
[1742989414161,2.28014,2067.7,2067.6,41.76706]
[1742989416159,2.28014,2067.7,2067.6,43.72706]
[1742989416350,1.63343,2067.8,2067.7,0.96704]
[1742989416551,3.133,2067.8,2067.7,0.96703]
[1742989416957,3.133,2067.8,2067.7,2.96703]
[1742989417351,3.133,2067.8,2067.7,43.76703]
[1742989418750,0.00724043,2067.9,2067.8,0.96699]
[1742989418955,0.00724043,2067.9,2067.8,1.66809]
[1742989419162,1.30674043,2067.9,2067.8,1.66809]
[1742989419361,1.30674043,2067.9,2067.8,42.46809]
[1742989419761,2.27369043,2067.9,2067.8,44.69809]
[1742989419960,2.27369043,2067.9,2067.8,42.46809]
[1742989420963,0.00724043,2067.9,2067.8,42.46809]
[1742989421361,0.00724043,2067.9,2067.8,44.43809]
[1742989422063,0.00724043,2067.9,2067.8,44.66809]
[1742989422663,0.00724043,2067.9,2067.8,44.77809]
[1742989426971,0.00724043,2067.9,2067.8,42.46809]
[1742989427360,0.00724043,2067.9,2067.8,44.54809]
[1742989429466,0.00724043,2067.9,2067.8,42.46809]
[1742989429666,0.00724043,2067.9,2067.8,44.80809]
[1742989431272,0.00724043,2067.9,2067.8,42.46809]
[1742989431473,0.00724043,2067.9,2067.8,44.76809]
[1742989434170,0.00724043,2067.9,2067.8,42.46809]
[1742989434370,0.00724043,2067.9,2067.8,44.61809]
[1742989434779,0.00724043,2067.9,2067.8,42.81809]
[1742989435574,0.00724043,2067.9,2067.8,44.59809]
[1742989436280,0.00724043,2067.9,2067.8,3.09699]
[1742989436281,0.97419043,2067.9,2067.8,3.09699]
[1742989436578,0.00724043,2067.9,2067.8,3.09699]
[1742989436778,0.00724043,2067.9,2067.8,44.59549]
[1742989440474,1.38424043,2067.9,2067.8,44.59549]
[1742989445387,1.38424043,2067.9,2067.8,44.51549]
[1742989445783,0.00724043,2067.9,2067.8,44.51549]
[1742989448788,0.6485,2068.5,2068.4,0.96671]
[1742989449088,3.2078,2068.7,2068.6,0.96662]
[1742989449387,3.2078,2068.7,2068.3,5.15182]
[1742989449591,1.3716,2068.6,2068.5,2.38053]
[1742989449793,2.33822,2068.6,2068.5,2.38053]
[1742989450286,1.3716,2068.6,2068.5,2.38053]
[1742989451186,1.3716,2068.6,2068.5,5.58833]
[1742989451388,1.3716,2068.6,2068.5,7.72833]
[1742989453584,1.3716,2068.6,2068.5,7.63833]
[1742989454391,1.3716,2068.6,2068.5,5.58833]
[1742989454590,1.3716,2068.6,2068.5,7.54833]
[1742989456390,1.62690043,2068.8,2068.7,0.96657]
[1742989456588,0.66034043,2068.8,2068.7,0.96657]
[1742989457697,2.05934043,2068.8,2068.7,2.27977]
[1742989461092,3.02587043,2068.8,2068.7,2.27977]
[1742989461593,2.05934043,2068.8,2068.7,2.27977]
[1742989461999,3.02587043,2068.8,2068.7,2.27977]
[1742989464100,2.05934043,2068.8,2068.7,2.27977]
[1742989464398,2.05934043,2068.8,2068.7,4.65977]
[1742989464595,3.02587043,2068.8,2068.7,2.27977]
[1742989464894,2.05934043,2068.8,2068.7,2.27977]
[1742989465294,3.02587043,2068.8,2068.7,2.27977]
[1742989465495,2.05934043,2068.8,2068.7,2.27977]
[1742989465894,3.02587043,2068.8,2068.7,2.27977]
[1742989466903,2.05934043,2068.8,2068.7,4.20977]
[1742989468393,3.02587043,2068.8,2068.7,2.27977]
[1742989469209,2.05934043,2068.8,2068.7,2.27977]
[1742989469394,3.02587043,2068.8,2068.7,2.27977]
[1742989476106,3.02587043,2068.8,2068.7,1.3132]
[1742989476306,3.02587043,2068.8,2068.7,2.27977]
[1742989478814,3.02587043,2068.8,2068.7,1.3132]
[1742989480216,6.23367043,2068.8,2068.7,1.3132]
[1742989482018,6.23367043,2068.8,2068.7,2.27977]
[1742989482221,3.02587043,2068.8,2068.7,2.27977]
[1742989482521,3.02587043,2068.8,2068.7,4.55977]
[1742989482814,2.05934043,2068.8,2068.7,4.55977]
[1742989483219,3.02587043,2068.8,2068.7,4.55977]
[1742989484421,2.05934043,2068.8,2068.7,4.55977]
[1742989484605,2.05934043,2068.8,2068.7,2.27977]
[1742989485314,0.00724043,2068.8,2068.7,2.27977]
[1742989485514,0.00724043,2068.8,2068.7,4.38977]
[1742989486210,0.00724043,2068.8,2068.7,2.27977]
[1742989487720,1.33314043,2068.8,2068.7,2.27977]
[1742989489617,2.29967043,2068.8,2068.7,2.27977]
[1742989489816,1.33314043,2068.8,2068.7,2.27977]
[1742989490222,1.33314043,2068.8,2068.7,4.31977]
[1742989490623,0.00724043,2068.8,2068.7,4.31977]
[1742989491523,0.00724043,2068.8,2068.7,2.27977]
[1742989491727,0.00724043,2068.8,2068.7,4.49977]
[1742989491927,0.00724043,2068.8,2068.7,2.27977]
[1742989492128,0.00724043,2068.8,2068.7,4.44977]
[1742989492627,0.00724043,2068.8,2068.7,2.27977]
[1742989492924,1.37314043,2068.8,2068.7,2.27977]
[1742989498432,1.37314043,2068.8,2068.7,4.62977]
[1742989499126,0.96662,2068.6,2068.5,2.26614]
[1742989499330,0.96662,2068.6,2068.5,0.96664]
[1742989499929,2.29782,2068.6,2068.5,3.10664]
[1742989500435,2.29782,2068.6,2068.5,3.03664]
[1742989500635,0.96671,2068.5,2068.4,0.9667]
[1742989500931,2.29791,2068.5,2068.4,1.0367]
[1742989503136,2.29791,2068.5,2068.4,0.07]
[1742989505431,3.098,2068.6,2068.5,0.96667]
[1742989505732,4.06462,2068.6,2068.5,1.63367]
[1742989506239,3.098,2068.6,2068.5,1.63367]
[1742989506438,0.96662,2068.6,2068.5,3.71367]
[1742989506641,2.24582,2068.6,2068.5,3.71367]
[1742989507645,2.24582,2068.6,2068.5,0.667]
[1742989507938,2.24582,2068.6,2068.5,1.63367]
[1742989508641,1.2792,2068.6,2068.5,3.76367]
[1742989508839,2.24582,2068.6,2068.5,3.76367]
[1742989509031,1.2792,2068.6,2068.5,3.76367]
[1742989509232,2.24582,2068.6,2068.5,3.76367]
[1742989510539,2.24582,2068.6,2068.5,0.667]
[1742989510944,2.24582,2068.6,2068.5,1.63367]
[1742989511240,4.18158043,2068.8,2068.5,6.29146]
[1742989511443,2.36518043,2068.8,2068.7,0.96657]
[1742989511629,3.07258043,2068.8,2068.7,0.96657]
[1742989512847,0.96657,2068.7,2068.6,1.3534]
[1742989513137,2.91307,2068.7,2068.6,2.32002]
[1742989514849,1.2962,2068.7,2068.6,4.27002]
[1742989515742,2.26277,2068.7,2068.6,2.32002]
[1742989517041,2.26277,2068.7,2068.6,4.49002]
[1742989517541,3.92244043,2068.8,2068.7,0.96657]
[1742989517542,0.71464043,2068.8,2068.7,0.96657]
[1742989517743,0.00724043,2068.8,2068.7,4.68817]
[1742989517948,3.10524043,2068.8,2068.7,4.68817]
[1742989518534,4.07177043,2068.8,2068.7,4.68817]
[1742989518735,3.10524043,2068.8,2068.7,4.52817]
[1742989519044,3.10524043,2068.8,2068.7,4.39817]
[1742989519242,4.48544043,2068.8,2068.7,4.39817]
[1742989520144,0.00724043,2068.8,2068.7,4.39817]
[1742989521543,0.97377043,2068.8,2068.7,2.67817]
[1742989522246,0.00724043,2068.8,2068.7,2.67817]
[1742989523844,0.00724043,2068.8,2068.7,4.87817]
[1742989524450,0.00724043,2068.8,2068.7,2.35817]
[1742989524949,1.30434043,2068.8,2068.7,43.15817]
[1742989526055,0.00724043,2068.8,2068.7,43.52817]
[1742989526444,0.00724043,2068.8,2068.7,43.15817]
[1742989526649,0.00724043,2068.8,2068.7,43.48817]
[1742989528845,0.00724043,2068.8,2068.7,43.15817]
[1742989529040,0.00724043,2068.8,2068.7,45.40817]
[1742989530353,0.00724043,2068.8,2068.7,43.15817]
[1742989530555,0.00724043,2068.8,2068.7,45.37817]
[1742989532261,7.48591967,2069.4,2069.3,0.96629]
[1742989532452,8.45216967,2069.4,2069.3,0.96629]
[1742989533157,8.45216967,2069.4,2069.2,1.64009]
[1742989533158,0.96629,2069.3,2069.2,1.64009]
[1742989533350,5.34239,2069.3,2069.2,0.96629]
[1742989534168,4.3761,2069.3,2069.2,0.96629]
[1742989534875,5.34239,2069.3,2069.2,0.96629]
[1742989535775,4.3761,2069.3,2069.2,0.96629]
[1742989535972,4.3761,2069.3,2069.2,1.64249]
[1742989540782,4.3761,2069.3,2069.2,3.68249]
[1742989541272,4.3761,2069.3,2069.2,3.59249]
[1742989542977,7.48591967,2069.4,2069.3,0.96629]
[1742989543175,7.48591967,2069.4,2069.3,4.43229]
[1742989544169,7.48591967,2069.4,2069.3,5.64009]
[1742989544669,8.82051967,2069.4,2069.3,5.64009]
[1742989546872,9.51201967,2069.4,2069.3,5.64009]
[1742989549282,7.48591967,2069.4,2069.3,5.64009]
[1742989550486,1.3021,2069.5,2069.4,0.96625]
[1742989550784,1.3021,2069.5,2069.4,4.36715]
[1742989551683,1.3021,2069.5,2069.4,2.25715]
[1742989551880,1.3021,2069.5,2069.4,4.32715]
[1742989553585,1.9944,2069.5,2069.4,4.32715]
[1742989554182,1.9944,2069.5,2069.4,2.25715]
[1742989558190,2.6793,2069.5,2069.4,2.25715]
[1742989560378,2.6793,2069.5,2069.4,2.32715]
[1742989562692,3.6455,2069.5,2069.4,2.32715]
[1742989562894,2.6793,2069.5,2069.4,2.32715]
[1742989563600,3.6455,2069.5,2069.4,2.32715]
[1742989563788,2.6793,2069.5,2069.4,2.32715]
[1742989564488,1.9944,2069.5,2069.4,2.32715]
[1742989567993,0.00724043,2069.6,2069.5,0.9662]
[1742989568294,1.30764043,2069.6,2069.5,5.0297]
[1742989568793,1.30764043,2069.6,2069.5,5.3097]
[1742989569985,0.00724043,2069.6,2069.5,5.1597]
[1742989570386,1.41994043,2069.6,2069.5,5.1597]
[1742989573394,1.41994043,2069.6,2069.5,3.0297]
[1742989575398,1.41994043,2069.6,2069.5,5.3497]
[1742989575594,0.00724043,2069.6,2069.5,5.3497]
[1742989576301,0.00724043,2069.6,2069.5,46.1497]
[1742989586905,0.694,2070.0,2069.9,0.96601]
[1742989588312,1.9931,2070.0,2069.9,2.25281]
[1742989589914,1.9931,2070.0,2069.9,4.31281]
[1742989590904,1.9931,2070.0,2069.9,2.25281]
[1742989592618,1.9931,2070.0,2069.9,4.50281]
[1742989594509,1.9931,2070.0,2069.9,4.22281]
[1742989594716,1.9931,2070.0,2069.9,2.25281]
[1742989594906,1.9931,2070.0,2069.9,4.39281]
[1742989599822,1.9931,2070.0,2069.9,2.25281]
[1742989600517,1.9931,2070.0,2069.9,4.18281]
[1742989620122,0.69954043,2070.2,2070.1,0.96592]
[1742989620325,0.00724043,2070.2,2070.1,4.75592]
[1742989620520,0.00724043,2070.2,2070.1,0.96592]
[1742989620728,1.34244043,2070.2,2070.1,0.96592]
[1742989622731,1.34244043,2070.2,2070.1,3.29592]
[1742989622933,1.34244043,2070.2,2070.1,0.96592]
[1742989625238,1.34244043,2070.2,2070.1,3.28592]
[1742989625936,1.34244043,2070.2,2070.1,0.96592]
[1742989626241,1.34244043,2070.2,2070.1,3.09592]
[1742989628735,0.00724043,2070.2,2070.1,3.09592]
[1742989628940,0.6671,2070.4,2070.3,0.96583]
[1742989629137,0.6671,2070.4,2070.3,5.71363]
[1742989633740,1.3511,2070.5,2070.4,0.96578]
[1742989633936,1.3511,2070.5,2070.4,5.11618]
[1742989634339,1.3511,2070.5,2070.4,3.01618]
[1742989634537,1.3511,2070.5,2070.4,46.10618]
[1742989636138,1.3511,2070.5,2070.4,43.15288]
[1742989643948,2.31683,2070.5,2070.4,43.15288]
[1742989646855,1.3511,2070.5,2070.4,43.15288]
[1742989647053,2.31683,2070.5,2070.4,43.15288]
[1742989652859,2.31683,2070.5,2070.4,42.1871]
[1742989653065,2.31683,2070.5,2070.4,1.3871]
[1742989655863,5.52463,2070.5,2070.4,1.3871]
[1742989657160,2.31683,2070.5,2070.4,1.3871]
[1742989657361,5.52463,2070.5,2070.4,1.3871]
[1742989657663,5.52463,2070.5,2070.4,2.35288]
[1742989657966,5.52463,2070.5,2070.4,1.3871]
[1742989658161,5.52463,2070.5,2070.4,2.35288]
[1742989658860,3.2078,2070.5,2070.4,2.35288]
[1742989659068,3.2078,2070.5,2070.4,2.99598]
[1742989659266,3.2078,2070.5,2070.4,3.67448]
[1742989659765,4.17353,2070.5,2070.4,3.67448]
[1742989660163,2.32166043,2070.6,2070.5,0.96573]
[1742989660366,2.32166043,2070.6,2070.5,2.25803]
[1742989661765,2.99686043,2070.6,2070.5,2.25803]
[1742989664169,1.64816043,2070.6,2070.5,1.2923]
[1742989664363,3.02056043,2070.6,2070.5,2.25803]
[1742989665169,1.64816043,2070.6,2070.5,2.25803]
[1742989665370,0.97296043,2070.6,2070.5,2.25803]
[1742989671973,0.00724043,2070.6,2070.5,2.25803]
[1742989672162,0.97293043,2070.6,2070.5,2.25803]
[1742989672873,2.25593043,2070.6,2070.5,2.25803]
[1742989674070,0.97293043,2070.6,2070.5,2.25803]
[1742989674976,0.00724043,2070.6,2070.5,2.25803]
[1742989675173,0.97293043,2070.6,2070.5,2.25803]
[1742989675372,0.00724043,2070.6,2070.5,2.25803]
[1742989677076,0.97293043,2070.6,2070.5,2.25803]
[1742989677373,0.00724043,2070.6,2070.5,2.25803]
[1742989677773,0.97293043,2070.6,2070.5,2.25803]
[1742989678273,0.00724043,2070.6,2070.5,2.25803]
[1742989678667,1.40244043,2070.6,2070.5,2.25803]
[1742989679983,2.36813043,2070.6,2070.5,2.25803]
[1742989680173,1.40244043,2070.6,2070.5,2.25803]
[1742989680570,0.00724043,2070.6,2070.5,2.25803]
[1742989682270,0.00724043,2070.6,2070.5,3.93803]
[1742989683071,0.96547,2071.1,2071.0,0.96546]
[1742989683272,0.96553,2071.0,2070.9,0.96552]
[1742989683875,0.96553,2071.0,2070.9,2.32392]
[1742989684381,1.3852,2071.1,2071.0,0.9655]
[1742989684566,2.35065,2071.1,2071.0,2.3239]
[1742989686082,1.3852,2071.1,2071.0,2.3239]